bitfinex/quotes_ETHUSD_20240907
["timestamp","ask_amount","ask_price","bid_price","bid_amount"]
[1725681173540,4.45394,2245.2,2244.8,5.95403264]
[1725681173712,0.17912726,2245.0,2244.9,4.54357907]
[1725681174036,6.80862,2245.7,2245.2,11.18166]
[1725681174243,6.80862,2245.7,2245.4,1.49930264]
[1725681174244,2.3555,2245.7,2245.4,1.49930264]
[1725681174452,6.80741,2246.3,2245.6,8.22645264]
[1725681174605,2.3555,2246.3,2245.9,5.95185264]
[1725681175125,4.45151,2246.5,2246.1,1.49930264]
[1725681176131,10.075491,2246.5,2246.1,1.49930264]
[1725681176333,4.45159,2246.4,2246.1,1.49930264]
[1725681180721,0.18290277,2246.3,2246.1,1.49930264]
[1725681181816,4.63467277,2246.3,2246.1,1.49930264]
[1725681182305,4.45247,2246.0,2245.6,7.46]
[1725681182550,4.45247,2246.0,2245.7,1.49930264]
[1725681182853,0.18297264,2245.9,2245.7,1.49930264]
[1725681183827,4.63553264,2245.9,2245.7,1.49930264]
[1725681187335,4.45267,2245.9,2245.5,1.49930264]
[1725681187720,0.18297264,2245.8,2245.5,1.49930264]
[1725681189370,8.905,2246.0,2245.5,1.49930264]
[1725681189575,0.18297264,2245.7,2245.5,1.49930264]
[1725681189929,8.905,2246.0,2245.5,1.49930264]
[1725681190343,0.18297264,2245.9,2245.5,1.49930264]
[1725681195927,4.63553264,2245.9,2245.5,1.49930264]
[1725681197997,4.45277,2245.8,2245.5,1.49930264]
[1725681198165,4.63536527,2245.8,2245.5,1.49930264]
[1725681202696,4.63536527,2245.8,2245.4,2.274]
[1725681203004,4.63536527,2245.8,2245.5,1.49930264]
[1725681203498,0.18259527,2245.8,2245.7,8.22915264]
[1725681203658,4.45197,2246.2,2245.7,8.22915264]
[1725681203860,0.18202224,2246.1,2245.7,8.22915264]
[1725681206513,4.63418224,2246.1,2245.7,8.22915264]
[1725681209390,0.18202224,2246.1,2245.8,4.45273]
[1725681209603,0.18202224,2246.1,2245.9,1.49930264]
[1725681213143,4.45269,2245.9,2245.6,1.49930264]
[1725681213766,4.63510372,2245.8,2245.6,1.49930264]
[1725681214040,9.08800372,2245.8,2245.4,1.49930264]
[1725681214198,4.45308,2245.7,2245.2,7.46]
[1725681214402,4.45336,2245.5,2245.2,1.49930264]
[1725681214808,0.18212006,2245.4,2245.2,1.49930264]
[1725681215536,0.18212006,2245.4,2245.1,11.18492]
[1725681215721,4.45317,2245.6,2245.3,1.49930264]
[1725681215914,0.18196628,2245.5,2245.3,1.49930264]
[1725681223642,0.18196628,2245.5,2245.3,5.95303264]
[1725681224148,0.18188239,2245.4,2245.3,5.95303264]
[1725681224374,6.74666,2245.7,2245.3,5.95303264]
[1725681224567,0.18188239,2245.4,2245.3,5.95303264]
[1725681224783,6.74666,2245.7,2245.3,5.95303264]
[1725681225081,0.18188239,2245.4,2245.3,5.95303264]
[1725681225238,6.74666,2245.7,2245.3,5.95303264]
[1725681225444,0.18188239,2245.4,2245.3,5.95303264]
[1725681225771,0.18140713,2245.4,2245.3,5.95303264]
[1725681225943,6.74666,2245.7,2245.3,5.95303264]
[1725681226148,0.18140713,2245.4,2245.3,5.95303264]
[1725681226444,6.74666,2245.7,2245.3,5.95303264]
[1725681226680,0.18140713,2245.4,2245.3,5.95303264]
[1725681226877,6.74666,2245.7,2245.3,5.95303264]
[1725681227080,0.18140713,2245.4,2245.3,5.95303264]
[1725681227597,6.74666,2245.7,2245.3,5.95303264]
[1725681227744,0.18140713,2245.4,2245.3,5.95303264]
[1725681228082,6.74666,2245.7,2245.3,5.95303264]
[1725681228266,0.18140713,2245.4,2245.3,5.95303264]
[1725681228502,6.74666,2245.7,2245.3,5.95303264]
[1725681228686,0.18140713,2245.4,2245.3,5.95303264]
[1725681228889,4.45317,2245.6,2245.1,3.77620264]
[1725681229055,6.84536,2245.3,2244.9,0.93182256]
[1725681229264,4.45395,2245.2,2244.8,13.41400264]
[1725681229981,6.84536,2245.3,2244.8,17.86864264]
[1725681229982,6.84528,2245.3,2244.8,17.86864264]
[1725681230146,0.18116942,2245.1,2244.8,17.86864264]
[1725681230349,6.84528,2245.3,2244.8,17.86864264]
[1725681230567,0.18116942,2245.0,2244.8,17.86864264]
[1725681230778,8.0426297,2245.3,2244.8,10.40864264]
[1725681230978,0.18116942,2244.9,2244.8,5.95394264]
[1725681231195,8.0426297,2245.3,2244.8,7.50590108]
[1725681231397,0.18086174,2244.9,2244.8,5.95394264]
[1725681231554,8.0426297,2245.3,2244.8,7.50590168]
[1725681231754,0.18086174,2244.9,2244.8,5.95394264]
[1725681231981,8.0426297,2245.3,2244.8,7.50589971]
[1725681232198,0.18086174,2244.9,2244.8,5.95394264]
[1725681232411,8.0426297,2245.3,2244.8,7.50590661]
[1725681232577,0.18086174,2244.9,2244.8,5.95394264]
[1725681232772,8.0426297,2245.3,2244.8,5.95394264]
[1725681232970,8.0426297,2245.3,2244.9,4.45452]
[1725681233587,8.0426297,2245.3,2245.0,1.49930264]
[1725681235302,6.84495,2245.5,2245.1,4.45405]
[1725681235488,2.3915,2245.5,2245.1,4.45405]
[1725681236975,6.84486,2245.5,2245.1,4.45405]
[1725681237816,6.84486,2245.5,2245.0,5.95363264]
[1725681237989,8.02127884,2245.5,2245.0,5.95363264]
[1725681238165,4.45355,2245.4,2245.0,5.95363264]
[1725681239184,4.45377,2245.3,2245.0,1.49930264]
[1725681239390,4.45355,2245.4,2245.0,1.49930264]
[1725681239870,3.56791884,2245.5,2245.0,1.49930264]
[1725681240091,4.4533,2245.6,2245.2,1.49930264]
[1725681240285,4.45326,2245.6,2245.2,1.49930264]
[1725681240704,0.18038628,2245.5,2245.2,3.77620264]
[1725681243032,0.18038628,2245.5,2245.4,1.49930264]
[1725681243327,4.9191884,2245.7,2245.2,3.77620264]
[1725681243514,0.18038628,2245.5,2245.2,3.77620264]
[1725681243717,4.9191884,2245.7,2245.2,3.77620264]
[1725681244009,4.9191884,2245.7,2245.2,8.23013264]
[1725681244188,0.18038628,2245.6,2245.2,3.77620264]
[1725681246238,7.02505628,2245.6,2245.2,1.49930264]
[1725681246371,4.45337,2245.5,2245.2,1.49930264]
[1725681246815,0.18038628,2245.4,2245.2,1.49930264]
[1725681248698,4.63404628,2245.4,2245.2,1.49930264]
[1725681248900,4.63404628,2245.4,2245.0,1.49930264]
[1725681250615,0.18038628,2245.4,2245.2,1.49930264]
[1725681253019,4.63394628,2245.4,2245.0,1.49930264]
[1725681253882,4.45376,2245.3,2244.9,1.49930264]
[1725681254218,0.18055411,2245.2,2244.9,1.49930264]
[1725681254390,6.80326,2245.3,2244.9,1.49930264]
[1725681254579,0.18055411,2245.1,2244.9,1.49930264]
[1725681254800,6.80326,2245.3,2244.9,1.49930264]
[1725681255123,0.18055411,2245.0,2244.9,1.49930264]
[1725681255317,6.80326,2245.3,2244.9,3.05117011]
[1725681255485,0.18055411,2245.0,2244.9,1.49930264]
[1725681255686,6.80326,2245.3,2244.9,5.37895999]
[1725681255888,0.18055411,2245.0,2244.9,1.49930264]
[1725681256179,0.18055411,2245.0,2244.9,3.05116373]
[1725681256396,6.80326,2245.3,2244.9,5.37891643]
[1725681256592,6.80326,2245.3,2244.9,1.49930264]
[1725681256593,0.18055411,2245.0,2244.9,1.49930264]
[1725681256816,4.45403,2245.2,2244.9,1.55186193]
[1725681257019,0.18055411,2245.0,2244.9,1.49930264]
[1725681257220,5.579759,2245.2,2244.9,1.49930264]
[1725681257521,0.18055411,2245.0,2244.9,1.49930264]
[1725681257695,4.45403,2245.2,2244.9,1.49930264]
[1725681257899,0.18055411,2245.0,2244.9,1.49930264]
[1725681258091,4.45403,2245.2,2244.9,1.49930264]
[1725681261534,4.45355,2245.4,2245.1,1.49930264]
[1725681261894,0.18020445,2245.3,2245.1,1.49930264]
[1725681265732,0.18020445,2245.3,2245.0,1.49930264]
[1725681265733,4.63396445,2245.3,2245.0,1.49930264]
[1725681266621,6.98346445,2245.3,2245.0,1.49930264]
[1725681266799,6.98346445,2245.3,2245.0,1.49825707]
[1725681267002,4.45407,2245.2,2245.0,1.49825707]
[1725681267197,4.63423249,2245.2,2245.0,1.49825707]
[1725681279734,4.63423249,2245.2,2244.8,6.8858552]
[1725681280010,4.63423249,2245.2,2244.9,3.87992907]
[1725681280135,4.45407,2245.2,2244.8,6.8858552]
[1725681280455,4.45407,2245.2,2244.9,3.87992711]
[1725681280632,4.45407,2245.2,2244.8,6.8858552]
[1725681280835,4.45407,2245.2,2244.9,3.87992868]
[1725681281024,4.45407,2245.2,2244.8,6.8858552]
[1725681281355,4.45407,2245.2,2244.9,3.87986696]
[1725681281515,4.45407,2245.2,2244.8,6.8858552]
[1725681281721,4.45407,2245.2,2244.9,3.87991081]
[1725681282018,4.45407,2245.2,2244.8,6.8858552]
[1725681283058,4.45407,2245.2,2244.8,5.95403264]
[1725681284548,4.45407,2245.2,2244.9,3.87998031]
[1725681284748,5.69417315,2245.2,2244.8,6.88770523]
[1725681284963,0.17996668,2245.1,2244.9,3.8799522]
[1725681285162,0.17996668,2245.1,2244.8,2.43297523]
[1725681285339,0.17996668,2245.1,2244.9,3.87994682]
[1725681285534,0.17996668,2245.1,2244.8,2.43297523]
[1725681285745,0.17996668,2245.1,2244.9,3.88001905]
[1725681285940,0.17996668,2245.1,2244.8,2.43297523]
[1725681286136,0.17996668,2245.1,2244.9,1.55199999]
[1725681286337,0.17996668,2245.1,2244.8,2.43297523]
[1725681286679,0.17996668,2245.1,2244.9,3.87997125]
[1725681286839,0.17996668,2245.1,2244.8,2.43297523]
[1725681287024,4.45407,2245.2,2244.9,3.87994848]
[1725681287224,0.17982678,2245.0,2244.8,2.43297523]
[1725681287482,4.45407,2245.2,2244.9,3.87999007]
[1725681287729,4.45407,2245.2,2244.8,2.43297523]
[1725681287934,4.45407,2245.2,2244.9,3.87996875]
[1725681288243,4.45407,2245.2,2244.8,2.43297523]
[1725681288569,4.45407,2245.2,2244.9,3.87998991]
[1725681288755,4.45407,2245.2,2244.8,2.43297523]
[1725681289066,4.45407,2245.2,2244.9,3.87995971]
[1725681289269,4.45376,2245.3,2245.0,1.49930264]
[1725681289629,8.90763,2245.3,2245.0,1.49930264]
[1725681290266,4.45396,2245.2,2245.0,1.49930264]
[1725681292753,4.45396,2245.2,2244.9,0.93367259]
[1725681292953,7.683632,2245.2,2245.0,1.55196586]
[1725681293280,7.683632,2245.2,2244.8,6.88768523]
[1725681293448,7.683632,2245.2,2244.9,3.87999233]
[1725681293648,7.683632,2245.2,2245.0,1.55199693]
[1725681293848,7.683632,2245.2,2244.8,6.88768523]
[1725681293849,4.45414,2245.1,2244.8,2.43297523]
[1725681294083,4.45414,2245.1,2244.9,3.87999325]
[1725681294290,4.45414,2245.1,2245.0,1.5519973]
[1725681295009,4.45414,2245.1,2245.0,3.8799694]
[1725681296050,4.63388285,2245.1,2245.0,3.8799694]
[1725681297886,4.63388285,2245.1,2245.0,3.87997758]
[1725681298258,4.63388285,2245.1,2245.0,3.8800243]
[1725681299956,4.63388285,2245.1,2245.0,3.88003888]
[1725681301462,4.45414,2245.1,2245.0,3.88003888]
[1725681302898,4.45414,2245.1,2245.0,1.55201555]
[1725681303100,4.45414,2245.1,2245.0,3.88004838]
[1725681303289,4.63385489,2245.1,2245.0,1.55201555]
[1725681304288,4.63385489,2245.1,2245.0,3.88003942]
[1725681304466,4.63385489,2245.1,2245.0,1.55201555]
[1725681305019,4.63385489,2245.1,2245.0,3.88002937]
[1725681305293,4.45414,2245.1,2245.0,1.55201555]
[1725681305494,4.45414,2245.1,2245.0,3.88003659]
[1725681305700,4.63385489,2245.1,2245.0,3.88003843]
[1725681306000,4.63385489,2245.1,2245.0,1.55201555]
[1725681306576,4.63385489,2245.1,2245.0,1.55201779]
[1725681309878,4.45414,2245.1,2245.0,3.88004715]
[1725681310112,4.63385489,2245.1,2245.0,3.88004715]
[1725681311681,4.63385489,2245.1,2245.0,3.8800202]
[1725681312327,0.17971489,2245.1,2245.0,16.61489917]
[1725681312489,0.17971489,2245.1,2245.0,19.66873028]
[1725681312677,4.45357,2245.4,2245.0,12.62739547]
[1725681312884,4.45402,2245.2,2245.1,3.8800202]
[1725681314184,6.88602,2245.2,2245.1,3.8800202]
[1725681314523,11.34004,2245.2,2245.1,1.55200808]
[1725681314696,11.34004,2245.2,2244.9,0.93517015]
[1725681315028,11.34004,2245.2,2245.0,3.87998008]
[1725681315221,6.88602,2245.2,2245.1,1.55199203]
[1725681315386,8.019993,2245.2,2245.1,1.55199203]
[1725681315586,8.19977784,2245.2,2244.9,0.93517015]
[1725681315789,8.19977784,2245.2,2245.0,3.87998492]
[1725681315992,8.19977784,2245.2,2244.9,0.93517015]
[1725681316215,8.19977784,2245.2,2245.0,3.87998873]
[1725681316421,12.65382784,2245.2,2244.9,0.93517015]
[1725681316622,11.51985484,2245.2,2244.9,0.93517015]
[1725681316835,11.51985484,2245.2,2245.0,3.87998798]
[1725681317119,7.06580484,2245.2,2245.1,1.55199519]
[1725681317321,7.06580484,2245.2,2244.9,0.93517015]
[1725681317622,7.06580484,2245.2,2245.0,3.8799814]
[1725681317826,7.06580484,2245.2,2244.9,0.93517015]
[1725681317985,7.06580484,2245.2,2245.0,3.87995732]
[1725681318181,7.06580484,2245.2,2244.9,0.93517015]
[1725681318386,7.06580484,2245.2,2245.0,3.88001245]
[1725681318617,7.06580484,2245.2,2244.9,0.93517015]
[1725681318916,4.45414,2245.1,2245.0,3.88001861]
[1725681319118,4.45414,2245.1,2245.0,1.55200744]
[1725681319318,4.63379894,2245.1,2245.0,1.55200744]
[1725681319733,4.63379894,2245.1,2244.8,2.43447279]
[1725681319888,4.63379894,2245.1,2244.9,3.88008852]
[1725681320237,4.63379894,2245.1,2244.8,2.43447279]
[1725681320389,4.63379894,2245.1,2244.9,3.88004047]
[1725681320716,4.63379894,2245.1,2245.0,1.55201444]
[1725681321220,0.17965894,2245.1,2245.0,1.55201444]
[1725681321737,0.17965894,2245.1,2245.0,3.8799385]
[1725681322246,0.17965894,2245.1,2245.0,1.5519754]
[1725681322437,0.17965894,2245.1,2245.0,3.87998837]
[1725681322748,0.17965894,2245.1,2245.0,1.5519754]
[1725681323617,0.17965894,2245.1,2245.0,1.55204604]
[1725681325554,0.17965894,2245.1,2245.0,1.55204624]
[1725681326407,0.17965894,2245.1,2245.0,3.88004159]
[1725681328539,12.46811483,2245.1,2245.0,3.88004159]
[1725681328749,4.45473,2244.8,2244.7,0.93517015]
[1725681328944,4.45473,2244.8,2244.7,1.55220271]
[1725681329132,6.92613,2244.8,2244.5,8.39517015]
[1725681329447,6.92613,2244.8,2244.6,3.88066653]
[1725681329448,7.10580292,2244.8,2244.6,3.88066653]
[1725681329651,7.10580292,2244.8,2244.5,8.39517015]
[1725681329953,7.10580292,2244.8,2244.6,3.88051015]
[1725681330151,7.10580292,2244.8,2244.5,8.39517015]
[1725681330368,7.10580292,2244.8,2244.6,3.88050201]
[1725681330665,7.10580292,2244.8,2244.5,8.39517015]
[1725681330828,7.10580292,2244.8,2244.6,3.88054192]
[1725681331010,7.10580292,2244.8,2244.5,8.39517015]
[1725681331210,7.10580292,2244.8,2244.6,3.88054125]
[1725681331409,7.10580292,2244.8,2244.5,8.39517015]
[1725681331656,7.10580292,2244.8,2244.6,1.55221688]
[1725681331657,6.92613,2244.8,2244.6,1.55221688]
[1725681331851,6.92613,2244.8,2244.5,8.39517015]
[1725681332045,6.92613,2244.8,2244.6,1.55222108]
[1725681332216,6.92613,2244.8,2244.5,0.93517015]
[1725681332416,6.92613,2244.8,2244.6,1.55222117]
[1725681332622,6.92613,2244.8,2244.4,24.61137279]
[1725681332919,6.92613,2244.8,2244.5,23.7805533]
[1725681333123,0.17949105,2244.7,2244.6,1.55222132]
[1725681333508,6.92613,2244.8,2244.6,1.55222132]
[1725681333715,0.17949105,2244.7,2244.6,1.49930264]
[1725681333949,4.45456,2244.9,2244.6,7.6566869]
[1725681334255,4.45432,2245.1,2244.8,1.49930264]
[1725681334958,4.45349,2245.5,2245.0,1.49930264]
[1725681335248,10.11824228,2245.5,2245.0,1.49930264]
[1725681335451,5.66475228,2245.5,2245.1,2.2769]
[1725681336016,4.45369,2245.4,2245.0,1.49930264]
[1725681336457,4.45369,2245.4,2245.1,1.55187223]
[1725681336751,4.45369,2245.4,2245.0,1.49930264]
[1725681336957,5.78618651,2245.4,2245.0,1.49930264]
[1725681338664,4.45378,2245.3,2245.0,1.49930264]
[1725681338835,4.45397,2245.2,2245.0,1.49930264]
[1725681339725,0.17943505,2245.1,2245.0,1.49930264]
[1725681339928,4.63357505,2245.1,2245.0,1.49930264]
[1725681340151,5.78946955,2245.1,2245.0,1.49930264]
[1725681341559,1.33532955,2245.1,2245.0,1.49930264]
[1725681342726,5.78946955,2245.1,2245.0,1.49930264]
[1725681343028,5.78946955,2245.1,2244.8,1.49930264]
[1725681343230,4.63357505,2245.1,2244.8,1.49930264]
[1725681343463,0.17943505,2245.1,2244.8,1.49930264]
[1725681343756,0.17943505,2245.1,2245.0,1.49930264]
[1725681344122,4.45376,2245.3,2245.0,1.49930264]
[1725681344328,0.17923921,2245.1,2245.0,1.49930264]
[1725681344633,2.4714,2245.5,2245.0,3.77620264]
[1725681344837,4.45355,2245.4,2245.0,3.77620264]
[1725681345236,0.17923921,2245.3,2245.0,3.77620264]
[1725681345634,4.45355,2245.4,2245.0,3.77620264]
[1725681345953,0.17923921,2245.3,2245.0,3.77620264]
[1725681346254,4.45355,2245.4,2245.0,3.77620264]
[1725681346966,0.17923921,2245.3,2245.0,3.77620264]
[1725681347267,4.63298921,2245.3,2245.0,1.49930264]
[1725681347588,5.78878313,2245.3,2245.0,1.49930264]
[1725681347942,5.78878313,2245.3,2244.9,0.9350851]
[1725681348566,6.89353,2245.2,2244.9,0.9350851]
[1725681348769,4.45415,2245.1,2244.9,0.9350851]
[1725681348966,4.63394881,2245.1,2244.9,0.9350851]
[1725681350467,0.17979881,2245.1,2244.9,0.9350851]
[1725681352537,8.90811,2245.2,2244.9,0.9350851]
[1725681352787,0.17986875,2245.0,2244.9,0.9350851]
[1725681353058,8.90807,2245.2,2244.9,0.9350851]
[1725681353777,0.17986875,2245.1,2244.9,0.9350851]
[1725681354382,4.63402875,2245.1,2244.9,0.9350851]
[1725681355046,7.07352875,2245.1,2244.9,0.9350851]
[1725681357146,7.07352875,2245.1,2244.8,1.49930264]
[1725681358583,8.90885,2245.0,2244.6,2.43438774]
[1725681358892,8.90885,2245.0,2244.7,3.88020395]
[1725681359191,8.90885,2245.0,2244.6,2.43438774]
[1725681359392,8.90885,2245.0,2244.7,3.88019961]
[1725681359586,8.90885,2245.0,2244.6,2.43438774]
[1725681359883,8.90885,2245.0,2244.7,3.8802154]
[1725681360094,8.90885,2245.0,2244.6,2.43438774]
[1725681360290,8.90885,2245.0,2244.7,3.88021686]
[1725681360468,4.45455,2244.9,2244.6,2.43438774]
[1725681360794,0.17971489,2244.8,2244.6,1.49930264]
[1725681361286,4.63456489,2244.8,2244.6,1.49930264]
[1725681363489,0.17971489,2244.8,2244.7,2.2769]
[1725681363703,0.17971489,2244.8,2244.7,3.82906241]
[1725681363868,11.3481,2245.1,2244.7,6.15724795]
[1725681363869,4.45434,2245.0,2244.7,6.15724795]
[1725681364059,4.45434,2245.0,2244.6,1.49930264]
[1725681364395,0.17957499,2244.9,2244.8,1.49930264]
[1725681365054,4.63411499,2244.9,2244.8,1.49930264]
[1725681365282,4.63411499,2244.9,2244.6,1.49930264]
[1725681365491,5.90506077,2244.9,2244.6,1.49930264]
[1725681365997,5.90506077,2244.9,2244.7,1.55215286]
[1725681366310,4.45513,2244.6,2244.5,0.9350851]
[1725681366472,6.89503,2244.4,2244.3,7.46]
[1725681366677,4.45553,2244.4,2244.1,2.43438774]
[1725681366859,4.63510499,2244.4,2244.2,3.88106855]
[1725681367064,4.63510499,2244.4,2244.1,2.43438774]
[1725681367302,7.07460499,2244.4,2244.2,1.55243429]
[1725681367602,7.07460499,2244.4,2244.1,1.49930264]
[1725681368189,11.53024499,2244.4,2244.1,1.49930264]
[1725681368365,7.07460499,2244.4,2244.1,1.49930264]
[1725681368570,6.89503,2244.4,2244.1,1.49930264]
[1725681368890,0.17957499,2244.3,2244.1,1.49930264]
[1725681374608,0.17957499,2244.3,2244.1,8.32136111]
[1725681374915,8.9105,2244.6,2244.1,8.23221264]
[1725681375139,4.45524,2244.6,2244.3,1.49930264]
[1725681375316,0.17872142,2244.5,2244.3,1.49930264]
[1725681376630,2.2602,2244.4,2244.3,1.49930264]
[1725681376795,4.45576,2244.3,2243.9,12.1247851]
[1725681376999,4.45576,2244.3,2244.1,1.49930264]
[1725681377217,0.17872142,2244.2,2244.1,1.49930264]
[1725681377837,4.45576,2244.3,2244.1,1.49930264]
[1725681378144,6.71573,2244.4,2244.1,1.49930264]
[1725681378630,0.17872142,2244.2,2244.1,1.49930264]
[1725681378934,6.71573,2244.4,2244.1,1.49930264]
[1725681379447,0.17872142,2244.3,2244.1,1.49930264]
[1725681387916,4.63452142,2244.3,2244.1,1.49930264]
[1725681388720,0.17872142,2244.3,2244.1,1.49930264]
[1725681394274,4.63445142,2244.3,2244.1,1.49930264]
[1725681397259,5.76946956,2244.3,2244.1,1.49930264]
[1725681397461,4.45593,2244.2,2243.9,1.49930264]
[1725681397668,2.424,2244.2,2243.6,20.8350851]
[1725681397839,0.55169772,2244.1,2243.7,1.49930264]
[1725681398040,0.37377396,2244.1,2243.9,1.49930264]
[1725681398379,0.17772781,2244.0,2243.9,1.49930264]
[1725681403779,0.17772781,2244.0,2243.8,1.49930264]
[1725681412376,4.45613,2244.1,2243.8,1.49930264]
[1725681412575,5.589749,2244.1,2243.8,1.49930264]
[1725681412888,0.17741981,2244.0,2243.8,1.49930264]
[1725681420619,5.589749,2244.1,2243.8,1.49930264]
[1725681421186,4.45636,2244.0,2243.8,1.49930264]
[1725681421390,0.17741981,2243.9,2243.8,1.49930264]
[1725681422517,0.17741981,2243.9,2243.8,3.77620264]
[1725681422772,0.17741981,2243.9,2243.8,5.32888853]
[1725681422913,4.45604,2244.2,2243.8,5.32891272]
[1725681423227,4.45614,2244.1,2243.8,3.77620264]
[1725681423422,0.17739181,2244.0,2243.8,3.77620264]
[1725681425214,0.17739181,2244.0,2243.8,1.49930264]
[1725681425809,0.17739181,2244.0,2243.4,33.9608186]
[1725681426134,4.45614,2244.1,2243.9,1.49930264]
[1725681426298,0.9593884,2244.0,2243.9,1.49930264]
[1725681426504,1.13678021,2244.0,2243.9,1.49930264]
[1725681428449,0.17739181,2244.0,2243.9,1.49930264]
[1725681428663,0.17739181,2244.0,2243.9,14.29378209]
[1725681428859,6.78083,2244.6,2244.0,4.45628]
[1725681429022,2.3256,2244.6,2244.3,1.49930264]
[1725681429354,2.3256,2244.8,2244.5,1.49930264]
[1725681429536,3.50705286,2245.1,2244.7,1.49930264]
[1725681429735,6.77935,2245.3,2244.9,1.49930264]
[1725681431346,4.45398,2245.2,2244.9,1.49930264]
[1725681431816,4.45398,2245.2,2244.7,1.49930264]
[1725681433508,8.90804,2245.2,2244.7,1.49930264]
[1725681434112,4.45398,2245.2,2244.7,1.49930264]
[1725681434312,0.677958,2245.1,2244.7,1.49930264]
[1725681435732,0.17706982,2245.0,2244.7,1.49930264]
[1725681442965,0.17706982,2245.0,2244.9,10.40838264]
[1725681443134,0.17706982,2245.0,2244.9,14.86292264]
[1725681443454,2.3256,2245.8,2245.3,4.45362]
[1725681443657,5.130882,2245.7,2245.4,1.49930264]
[1725681443860,5.130882,2245.7,2245.1,4.45398]
[1725681443861,4.45325,2245.6,2245.1,4.45398]
[1725681444026,4.45348,2245.5,2245.2,1.49930264]
[1725681444225,0.17968692,2245.4,2245.2,1.49930264]
[1725681446652,4.45318,2245.6,2245.2,1.49930264]
[1725681446853,0.69279612,2245.5,2245.2,1.49930264]
[1725681447028,5.14616612,2245.5,2245.2,1.49930264]
[1725681447435,0.69279612,2245.5,2245.4,1.49930264]
[1725681447667,0.69279612,2245.5,2245.2,1.49930264]
[1725681447967,4.45359,2245.4,2245.2,1.49930264]
[1725681448432,0.18069396,2245.3,2245.2,1.49930264]
[1725681448818,6.93449,2245.5,2245.2,1.49930264]
[1725681449072,0.18069396,2245.4,2245.2,1.49930264]
[1725681449949,4.63424396,2245.4,2245.2,1.49930264]
[1725681450138,4.45426,2245.1,2244.7,19.9]
[1725681450335,4.45426,2245.1,2244.8,1.49930264]
[1725681450670,0.18063802,2245.0,2244.8,1.49930264]
[1725681451643,6.93513,2245.2,2244.8,1.49930264]
[1725681451939,0.98957212,2245.1,2244.8,1.49930264]
[1725681456440,0.98957212,2245.1,2244.8,5.95403264]
[1725681458661,0.98957212,2245.1,2244.8,1.49930264]
[1725681459061,0.98957212,2245.1,2244.8,5.95403264]
[1725681460663,0.98957212,2245.1,2245.0,1.49930264]
[1725681465194,0.18037228,2245.1,2245.0,5.92690809]
[1725681465377,0.18037228,2245.1,2245.0,10.49705963]
[1725681465712,2.94737628,2245.7,2245.0,1.58837963]
[1725681465864,0.46637628,2245.7,2245.5,1.49930264]
[1725681466268,0.46637628,2245.7,2245.5,5.95255264]
[1725681466907,1.20645991,2245.7,2245.5,5.95255264]
[1725681467419,1.20645991,2245.7,2245.5,1.49930264]
[1725681470722,1.20725991,2245.7,2245.5,1.49930264]
[1725681471513,5.66024991,2245.7,2245.3,1.49930264]
[1725681472224,5.66022991,2245.7,2245.0,7.28608839]
[1725681472426,4.45395,2245.2,2245.0,1.49930264]
[1725681476221,4.45358,2245.4,2245.0,1.49930264]
[1725681476378,0.18055409,2245.3,2245.0,1.49930264]
[1725681476573,4.45358,2245.4,2245.0,1.49930264]
[1725681476814,4.45335,2245.5,2245.2,1.49930264]
[1725681477021,0.18055409,2245.4,2245.2,1.49930264]
[1725681477422,4.45335,2245.5,2245.2,1.49930264]
[1725681479199,4.45356,2245.4,2245.2,1.49930264]
[1725681479509,8.9066,2245.6,2245.2,1.49930264]
[1725681479826,0.18080584,2245.5,2245.2,1.49930264]
[1725681482617,4.45374,2245.3,2245.0,1.49930264]
[1725681482846,2.98863005,2245.5,2245.0,5.95360264]
[1725681482847,11.2047,2245.5,2245.0,5.95360264]
[1725681483032,0.18080584,2245.4,2245.0,5.95360264]
[1725681483382,0.18080584,2245.4,2245.0,1.49930264]
[1725681483383,4.45375,2245.3,2245.0,1.49930264]
[1725681483583,11.20471,2245.5,2245.0,1.49930264]
[1725681483783,4.63436584,2245.4,2245.0,1.49930264]
[1725681484231,4.45378,2245.3,2245.0,1.49930264]
[1725681484727,0.18080584,2245.2,2245.0,1.49930264]
[1725681485083,4.45378,2245.3,2245.0,1.49930264]
[1725681485290,0.18058207,2245.1,2245.0,1.49930264]
[1725681485623,4.45378,2245.3,2245.0,3.05107763]
[1725681485923,0.18058207,2245.2,2245.0,1.49930264]
[1725681486424,0.18058207,2245.1,2245.0,1.49930264]
[1725681486646,4.45378,2245.3,2245.0,3.051096]
[1725681486812,0.18058207,2245.2,2245.0,1.49930264]
[1725681487013,4.45378,2245.3,2245.0,1.49930264]
[1725681487216,0.18058207,2245.2,2245.0,1.49930264]
[1725681487435,0.83290825,2245.3,2245.0,1.49930264]
[1725681487747,4.45356,2245.4,2245.2,1.49930264]
[1725681488812,8.90723,2245.4,2245.2,1.49930264]
[1725681489213,8.90722,2245.4,2245.2,1.49930264]
[1725681489435,1.00744086,2245.3,2245.2,1.49930264]
[1725681490383,5.46118086,2245.3,2245.2,1.49930264]
[1725681495557,5.641707,2245.3,2245.2,1.49930264]
[1725681496316,10.095447,2245.3,2245.2,1.49930264]
[1725681497057,10.095447,2245.3,2245.0,1.49930264]
[1725681497058,4.45399,2245.2,2245.0,1.49930264]
[1725681497763,0.18052614,2245.1,2245.0,1.49930264]
[1725681498051,0.18052614,2245.1,2245.0,3.05116115]
[1725681499259,0.18052614,2245.1,2245.0,3.05116022]
[1725681499647,4.45399,2245.2,2245.0,3.05116022]
[1725681499834,4.45399,2245.2,2245.0,1.49930264]
[1725681503519,4.45454,2244.9,2244.8,0.93318682]
[1725681503725,4.45454,2244.9,2244.7,9.13354458]
[1725681503726,4.45485,2244.8,2244.6,1.49930264]
[1725681504036,4.45485,2244.8,2244.7,3.88003105]
[1725681504225,4.45485,2244.8,2244.6,1.49930264]
[1725681504858,4.45485,2244.8,2244.7,1.55213803]
[1725681506868,4.45456,2244.9,2244.7,1.55213803]
[1725681507166,4.45456,2244.9,2244.8,1.49930264]
[1725681509772,4.45493,2244.7,2244.6,19.9]
[1725681510075,4.45493,2244.7,2244.6,21.45219807]
[1725681510389,4.45493,2244.7,2244.6,19.9]
[1725681510739,8.90986,2244.7,2244.6,19.9]
[1725681510976,9.08942101,2244.7,2244.6,19.9]
[1725681512048,9.08942101,2244.7,2244.5,1.49930264]
[1725681512049,4.45513,2244.6,2244.5,1.49930264]
[1725681512256,8.91026,2244.6,2244.5,1.49930264]
[1725681512451,9.08966711,2244.6,2244.5,1.49930264]
[1725681514365,4.63453711,2244.6,2244.5,1.49930264]
[1725681514565,5.45740257,2244.6,2244.5,1.49930264]
[1725681515653,9.91253257,2244.6,2244.5,1.49930264]
[1725681515873,5.45740257,2244.6,2244.5,1.49930264]
[1725681521156,9.91253257,2244.6,2244.5,1.49930264]